bitfinex/quotes_ETHUSD_20240902
["timestamp","ask_amount","ask_price","bid_price","bid_amount"]
[1725270201973,2.81769,2484.4,2484.0,2.3074]
[1725270202135,2.81792,2484.1,2484.0,2.3074]
[1725270202449,2.81792,2484.1,2483.2,2.81891]
[1725270202450,2.81792,2484.1,2483.5,2.2817]
[1725270202660,2.81821,2483.9,2483.5,2.2817]
[1725270202846,2.81821,2483.9,2483.5,2.55038]
[1725270204066,2.81761,2484.4,2483.1,2.3641]
[1725270204067,2.81868,2483.5,2483.1,2.3641]
[1725270204829,2.81871,2483.4,2483.1,2.3641]
[1725270205042,2.8189,2483.3,2482.7,2.43503871]
[1725270205223,2.8189,2483.3,2482.8,0.6465136]
[1725270205874,2.81896,2483.2,2482.8,0.6465136]
[1725270206162,2.8189,2483.3,2482.8,0.6465136]
[1725270206380,2.8189,2483.3,2482.8,3.6465136]
[1725270206590,2.81866,2483.5,2482.9,3.49988577]
[1725270206879,2.81866,2483.5,2483.0,3.0]
[1725270207079,2.81866,2483.5,2483.1,0.08053118]
[1725270207452,2.81866,2483.5,2483.2,0.55]
[1725270207655,2.81874,2483.4,2483.2,0.55]
[1725270207856,2.81866,2483.5,2483.2,0.55]
[1725270208071,2.81882,2483.4,2483.0,0.55]
[1725270208980,2.81866,2483.5,2483.1,0.08053496]
[1725270209153,5.63734,2483.5,2483.1,0.08053496]
[1725270209480,2.81878,2483.4,2483.0,0.55]
[1725270209689,2.81884,2483.3,2483.0,0.55]
[1725270209890,5.63776,2483.3,2483.0,0.55]
[1725270210182,2.81864,2483.5,2483.0,0.55]
[1725270210354,5.63733,2483.5,2483.0,0.63053658]
[1725270210684,5.63734,2483.5,2483.0,0.63053658]
[1725270210892,2.81864,2483.5,2483.0,0.63053658]
[1725270211050,2.81882,2483.4,2483.0,0.63053658]
[1725270212683,2.81881,2483.4,2483.0,0.63053658]
[1725270213278,5.63763,2483.4,2483.0,0.63053658]
[1725270213467,2.81881,2483.4,2483.0,0.55]
[1725270214219,2.81881,2483.4,2482.9,2.63053538]
[1725270214713,2.81861,2483.5,2482.9,2.63053538]
[1725270214914,3.100464,2483.5,2482.9,2.63053538]
[1725270215094,0.281854,2483.5,2482.9,5.44980538]
[1725270215414,0.281854,2483.5,2482.9,2.55]
[1725270215415,2.81884,2483.3,2482.9,2.55]
[1725270216082,2.81872,2483.4,2482.9,2.55]
[1725270216418,2.472,2484.8,2483.0,2.2711]
[1725270216715,7.905938,2486.2,2483.0,2.2711]
[1725270216716,2.8163,2485.6,2484.7,5.08826]
[1725270216871,5.28767,2486.1,2484.7,5.08826]
[1725270216872,2.81602,2485.8,2484.8,0.08047818]
[1725270217072,0.281602,2485.7,2485.0,2.81682]
[1725270217273,0.281602,2485.7,2485.1,0.08046877]
[1725270218579,3.097722,2485.7,2485.1,0.08046877]
[1725270218781,0.281602,2485.7,2485.1,2.89723877]
[1725270219114,2.81602,2485.8,2485.1,0.08046877]
[1725270219316,2.8158,2486.0,2485.1,0.08046877]
[1725270219493,2.8158,2486.0,2484.8,0.4051]
[1725270219494,2.8158,2486.0,2485.2,3.36658]
[1725270219685,2.8158,2486.0,2485.3,2.89701263]
[1725270219988,0.01,2488.4,2487.4,22.35]
[1725270220315,0.01,2488.4,2487.2,2.4736]
[1725270220316,0.01,2488.4,2488.3,5.28676]
[1725270220471,0.01,2488.4,2487.9,2.81357]
[1725270220674,2.81319,2488.3,2487.6,3.0]
[1725270220897,2.82305,2488.4,2487.4,2.81416]
[1725270221088,2.82305,2488.4,2487.2,3.0]
[1725270221089,0.39379621,2488.2,2487.5,3.0]
[1725270221285,0.01,2488.4,2488.3,2.81316]
[1725270221525,0.01,2488.4,2488.3,9.58142]
[1725270221761,0.01,2488.4,2488.3,6.36316]
[1725270221961,0.01,2488.4,2488.3,6.44352234]
[1725270222463,0.0137075,2489.2,2488.4,2.81302]
[1725270222665,0.0137075,2489.2,2488.5,3.0803592]
[1725270223150,0.0137075,2489.2,2487.7,2.81375]
[1725270223151,0.0137075,2489.2,2488.1,3.0]
[1725270223458,0.0137075,2489.2,2488.3,2.81307]
[1725270223669,0.0137075,2489.2,2488.4,0.63035986]
[1725270223834,0.0137075,2489.2,2488.7,2.81271]
[1725270224164,0.0137075,2489.2,2488.2,0.55]
[1725270224165,0.0137075,2489.2,2488.4,2.81302]
[1725270224460,4.631,2488.8,2488.5,2.89327938]
[1725270224662,4.21,2488.8,2488.5,2.89327938]
[1725270225229,4.21,2488.8,2488.2,3.0]
[1725270225434,4.21,2488.8,2487.8,2.8458]
[1725270225435,4.21,2488.8,2488.0,5.81347]
[1725270225647,2.81293,2488.6,2488.0,3.0]
[1725270225849,0.421,2488.7,2487.8,5.25442]
[1725270226484,3.23376,2488.7,2487.8,5.25442]
[1725270226690,1.025637,2488.6,2487.8,5.25442]
[1725270227180,2.81295,2488.5,2487.9,3.0]
[1725270227379,2.81306,2488.4,2487.8,3.0]
[1725270228453,0.3838357,2488.5,2487.4,2.81415]
[1725270228454,2.81318,2488.3,2487.5,2.81403]
[1725270228649,2.81318,2488.3,2487.6,5.81391]
[1725270228989,4.21,2488.8,2488.4,2.81304]
[1725270229139,4.21,2488.8,2488.7,2.81271]
[1725270229485,4.21,2488.8,2488.5,2.81293]
[1725270229686,4.21,2488.8,2488.3,2.81316]
[1725270229842,4.21,2488.8,2488.4,3.0]
[1725270229843,4.631,2488.8,2488.4,3.0]
[1725270230182,4.21,2488.8,2488.3,0.08036541]
[1725270230491,4.21,2488.8,2488.7,2.81271]
[1725270230691,4.21,2488.8,2488.7,5.62542]
[1725270230840,4.21,2488.8,2488.7,6.17542]
[1725270231241,4.21,2488.8,2488.7,8.98813]
[1725270231436,0.1217483,2489.7,2489.6,5.62338]
[1725270231666,0.1217483,2489.7,2489.6,14.38847]
[1725270232092,2.8092,2491.9,2490.1,2.2615]
[1725270232399,0.1217483,2492.1,2491.2,2.80988]
[1725270232537,0.1217483,2492.1,2490.8,2.2615]
[1725270232538,0.1217483,2492.1,2491.4,2.80957]
[1725270232760,2.80921,2491.9,2490.8,2.2615]
[1725270233077,0.280921,2491.8,2491.0,2.81003]
[1725270233294,2.80938,2491.7,2490.8,5.07183]
[1725270233496,2.80938,2491.7,2490.9,0.55]
[1725270233802,0.29306383,2492.0,2491.0,2.81001]
[1725270234109,0.29306383,2492.0,2490.9,0.55]
[1725270234251,0.1217483,2492.1,2491.4,2.80957]
[1725270234596,0.1217483,2492.1,2491.6,2.80837735]
[1725270234885,0.1217483,2492.1,2491.0,0.36140685]
[1725270234886,0.1217483,2492.1,2491.4,2.80964]
[1725270235057,2.9306583,2492.1,2491.4,2.80964]
[1725270235257,0.57394283,2492.0,2491.4,2.80964]
[1725270235582,0.57394283,2492.0,2491.1,2.80999]
[1725270235583,2.80898,2492.0,2491.1,2.80999]
[1725270235901,0.1217483,2492.1,2491.4,2.80962]
[1725270236062,0.1217483,2492.1,2491.7,2.80927]
[1725270236262,0.1217483,2492.1,2491.9,2.80909]
[1725270236511,0.1217483,2492.1,2491.5,3.0]
[1725270236512,0.1217483,2492.1,2492.0,6.16796]
[1725270237502,0.1217483,2492.1,2492.0,9.16796]
[1725270238279,0.1217483,2492.1,2492.0,5.80898]
[1725270238480,0.03,2493.2,2492.1,2.80885]
[1725270238481,2.8081,2492.8,2492.1,2.80885]
[1725270238749,0.03,2493.2,2491.5,2.80953]
[1725270238750,2.80851,2492.5,2491.5,2.80953]
[1725270238949,2.80912,2491.9,2491.1,5.11755]
[1725270239152,2.80888,2492.1,2491.2,2.80987]
[1725270239502,5.27689,2492.7,2490.7,2.81042]
[1725270239503,2.80932,2491.7,2490.7,2.81042]
[1725270239685,8.88041146,2492.2,2490.8,0.08028756]
[1725270239882,2.80985,2491.3,2490.8,0.08028756]
[1725270240549,2.80985,2491.3,2490.7,0.08028741]
[1725270240752,2.81001,2491.1,2490.3,2.81086]
[1725270240950,2.80966,2491.4,2490.8,2.81033]
[1725270241384,2.80966,2491.4,2490.6,2.81047]
[1725270241566,3.090626,2491.4,2490.7,0.08028746]
[1725270241786,0.280966,2491.4,2491.0,2.81005]
[1725270241982,3.50494026,2492.0,2491.2,2.80978]
[1725270242155,4.07156146,2492.7,2491.6,2.80934]
[1725270242355,2.80877,2492.2,2491.5,0.08025938]
[1725270242694,0.280877,2492.1,2491.5,2.80954]
[1725270243008,2.81028,2490.9,2490.0,3.359155]
[1725270243151,3.091398,2490.8,2490.1,3.21622]
[1725270243352,2.80992,2491.2,2490.4,2.81071]
[1725270243610,2.81015,2491.0,2490.3,0.08029709]
[1725270243805,2.81024,2490.9,2490.2,2.81098]
[1725270244090,0.280992,2491.1,2490.7,2.81037]
[1725270244293,2.80933,2491.7,2491.0,2.8101]
[1725270244499,2.80915,2491.9,2491.1,2.80991]
[1725270244705,3.089767,2492.1,2491.1,2.80991]
[1725270244706,3.090135,2491.8,2491.1,2.89026899]
[1725270244853,0.280877,2492.1,2490.7,2.81038]
[1725270245053,0.280877,2492.1,2491.4,2.80957]
[1725270245588,3.089767,2492.1,2491.4,2.80957]
[1725270245800,0.5898617,2492.0,2491.4,2.80957]
[1725270246115,2.80952,2491.6,2490.8,2.81025]
[1725270246256,0.280952,2491.5,2490.8,2.81025]
[1725270246455,2.80916,2491.9,2490.9,0.4051]
[1725270246655,2.80935,2491.7,2491.0,2.81011]
[1725270246896,2.80935,2491.7,2490.9,3.2153]
[1725270246897,3.090445,2491.6,2490.9,3.2153]
[1725270247103,0.280935,2491.6,2490.9,0.4051]
[1725270247301,2.80913,2491.9,2491.1,2.80999]
[1725270247502,2.80867,2492.3,2491.4,2.80958]
[1725270247654,2.80906,2492.0,2491.2,2.80982]
[1725270247850,2.80933,2491.7,2491.0,3.21513]
[1725270248094,3.370962,2491.9,2491.2,2.80978]
[1725270248394,3.370972,2491.9,2491.1,0.4051]
[1725270248602,0.561802,2491.9,2491.3,2.80969]
[1725270248754,2.80896,2492.1,2491.3,2.80969]
[1725270248755,2.80899,2492.0,2491.3,2.80969]
[1725270249168,2.80896,2492.1,2491.2,2.80988]
[1725270249398,2.8087,2492.3,2491.5,2.80952]
[1725270249609,2.80846,2492.5,2491.7,2.80925]
[1725270250304,9.04846,2492.5,2491.7,2.80925]
[1725270250521,6.24,2492.5,2492.4,2.80853]
[1725270250806,0.03,2493.2,2493.1,8.82832]
[1725270251120,0.1217483,2494.6,2493.6,2.80714]
[1725270251121,2.8063,2494.4,2493.6,2.80714]
[1725270251275,2.9278083,2494.6,2493.4,2.80736]
[1725270251276,0.1217483,2494.6,2494.1,2.80657]
[1725270251607,0.1217483,2494.6,2494.3,2.80637]
[1725270251757,0.1217483,2494.6,2493.5,3.280736]
[1725270251758,0.1217483,2494.6,2494.4,2.80628]
[1725270251958,0.1217483,2494.6,2494.2,3.21158]
[1725270252199,0.1217483,2494.6,2494.5,2.80617]
[1725270252360,0.1217483,2494.6,2494.5,3.35617]
[1725270252675,0.1217483,2494.6,2493.6,4.07156146]
[1725270252676,2.80676,2494.0,2492.4,2.3041]
[1725270252879,4.3477,2494.5,2492.5,0.4051]
[1725270253094,2.80741,2493.4,2492.7,2.80817]
[1725270253276,2.80642,2494.3,2492.8,2.80807]
[1725270253277,2.80715,2493.7,2492.8,2.80807]
[1725270253457,0.280642,2494.2,2492.5,2.80842]
[1725270253799,0.005,2493.3,2492.5,2.80839]
[1725270254100,2.80778,2493.1,2492.4,2.80853]
[1725270254262,0.005,2493.3,2492.5,2.80841]
[1725270254665,0.005,2493.3,2491.9,3.03944]
[1725270254666,0.005,2493.3,2492.6,2.80827]
[1725270254998,2.80845,2492.5,2491.8,2.80917]
[1725270255160,2.80855,2492.4,2491.6,2.80941]
[1725270255477,2.80855,2492.4,2491.7,2.80932]
[1725270255478,0.280845,2492.4,2491.7,2.80932]
[1725270255797,0.280845,2492.4,2491.5,3.21462]
[1725270255798,2.80888,2492.1,2491.5,3.21462]
[1725270256001,2.80901,2492.0,2491.3,2.80972]
[1725270256186,2.80901,2492.0,2491.5,2.80945]
[1725270256187,0.561789,2492.0,2491.5,2.80945]
[1725270256393,2.334,2492.7,2491.4,2.80965]
[1725270256394,2.80876,2492.2,2491.4,2.80965]
[1725270256575,3.089756,2492.1,2491.3,2.80968]
[1725270256758,2.8092,2491.9,2491.2,2.80987]
[1725270256959,3.089756,2492.1,2491.2,2.80987]
[1725270257167,2.80831,2492.6,2491.3,0.08026544]
[1725270257458,2.80831,2492.6,2491.9,2.80909]
[1725270257759,5.14222,2492.7,2492.0,0.08024938]
[1725270257959,0.514211,2492.6,2492.0,0.08024938]
[1725270258162,3.322531,2492.6,2492.0,0.08024938]
[1725270258409,3.322531,2492.6,2491.9,2.80909]
[1725270258565,3.322531,2492.6,2491.9,2.88933744]
[1725270258765,0.5656531,2492.5,2491.9,2.88933744]
[1725270259272,2.80799,2492.9,2491.9,2.88930744]
[1725270259460,2.80796,2493.0,2492.1,2.80876]
[1725270259668,0.280796,2492.9,2492.2,0.08024003]
[1725270260196,0.280796,2492.9,2492.3,2.80862]
[1725270260361,3.088776,2492.9,2492.1,2.80876]
[1725270260567,2.80777,2493.1,2492.3,2.80863]
[1725270260801,2.80787,2493.0,2492.3,2.80863]
[1725270261690,2.80777,2493.1,2492.3,2.80863]
[1725270261894,2.80777,2493.1,2492.4,2.80852]
[1725270262083,3.60617,2493.1,2492.4,2.80852]
[1725270262486,3.60617,2493.1,2492.3,2.80863]
[1725270262691,2.80786,2493.0,2492.3,2.80863]
[1725270262884,0.7984,2493.1,2492.4,2.80852]
[1725270263270,2.3687,2493.3,2492.7,2.80817]
[1725270263766,5.17622,2493.3,2492.6,0.08022452]
[1725270264078,5.17622,2493.3,2492.6,2.88850452]
[1725270264283,2.80773,2493.2,2492.3,2.80864]
[1725270264486,0.517643,2493.1,2492.3,2.80864]
[1725270264868,0.517643,2493.1,2492.4,2.88876228]
[1725270265110,0.517643,2493.1,2491.7,0.4051]
[1725270265288,2.80809,2492.8,2492.1,2.80885]
[1725270265465,2.8079,2493.0,2492.2,0.08023829]
[1725270265866,2.80766,2493.2,2491.7,0.4051]
[1725270265867,2.80766,2493.2,2491.8,0.48533608]
[1725270266104,0.005,2493.3,2493.1,2.80772]
[1725270266317,0.005,2493.3,2492.5,2.80839]
[1725270266464,2.80775,2493.1,2492.3,2.8086]
[1725270266669,2.80797,2492.9,2492.3,2.8086]
[1725270266892,2.80797,2492.9,2492.1,2.80883]
[1725270267091,5.61605,2492.9,2492.1,2.80883]
[1725270267302,3.369798,2493.1,2492.2,0.08023655]
[1725270267515,2.80777,2493.1,2492.3,2.80856]
[1725270267809,2.81256,2493.3,2491.9,0.34853361]
[1725270267810,0.005,2493.3,2492.8,2.80808]
[1725270268113,0.005,2493.3,2492.6,2.80827]
[1725270268408,0.005,2493.3,2492.7,0.08022457]
[1725270268593,3.374522,2493.3,2492.7,0.08022457]
[1725270268795,2.80766,2493.2,2492.5,0.08022457]
[1725270269681,2.80794,2493.0,2492.3,5.80864]
[1725270269886,2.80794,2493.0,2492.3,3.08023103]
[1725270270087,0.3374652,2493.1,2492.4,2.80844]
[1725270270315,0.3374652,2493.1,2492.3,3.0]
[1725270270650,2.80799,2492.9,2492.3,3.0]
[1725270270802,2.80788,2493.0,2492.3,3.0]
[1725270271002,2.80799,2492.9,2492.4,0.08023234]
[1725270271244,3.088668,2493.0,2492.3,3.0]
[1725270271458,2.80808,2492.8,2492.2,2.80866]
[1725270271949,2.80854,2492.4,2491.8,3.21423]
[1725270272161,2.80876,2492.2,2491.8,0.4051]
[1725270272366,2.3397,2492.7,2490.7,2.81036]
[1725270272367,2.80974,2491.4,2490.7,2.81036]
[1725270272523,2.80974,2491.4,2490.5,2.81066]
[1725270272524,2.80974,2491.4,2490.5,2.81059]
[1725270272852,5.61997,2491.2,2490.5,3.091726]
[1725270273052,2.80998,2491.2,2490.5,2.81066]
[1725270273347,2.81009,2491.1,2490.5,2.81066]
[1725270273500,2.81013,2491.0,2490.3,5.6217]
[1725270273707,2.81013,2491.0,2490.3,2.81081]
[1725270273909,5.61994,2491.2,2490.3,2.81081]
[1725270274105,2.80996,2491.2,2490.3,2.81081]
[1725270274606,2.81015,2491.0,2490.3,2.81081]
[1725270274860,2.80996,2491.2,2490.4,0.0802918]
[1725270275002,2.94998182,2492.1,2490.4,0.0802918]
[1725270275003,2.80958,2491.5,2490.8,2.81025]
[1725270275207,2.3397,2492.1,2490.9,0.08028309]
[1725270275508,2.3397,2492.1,2490.9,0.92003034]
[1725270275509,2.80922,2491.8,2490.9,0.92003034]
[1725270275710,2.80945,2491.6,2491.0,2.81008]
[1725270275910,2.80945,2491.6,2491.0,2.81009]
[1725270276168,2.80945,2491.6,2490.9,3.64993725]
[1725270276454,2.80945,2491.6,2491.0,3.0]
[1725270276758,2.80945,2491.6,2491.0,3.08027478]
[1725270276958,2.8093,2491.8,2491.1,2.80997]
[1725270277254,2.8094,2491.7,2491.1,2.80997]
[1725270277566,2.81057,2490.6,2490.0,1.38771225]
[1725270277872,2.81057,2490.6,2490.0,0.547965]
[1725270278009,2.81038,2490.8,2490.0,0.547965]
[1725270278010,2.415,2491.1,2490.0,0.547965]
[1725270278214,2.81113,2490.1,2490.0,0.547965]
[1725270278402,2.81113,2490.1,2490.0,0.12827918]
[1725270278403,5.62226,2490.1,2490.0,0.12827918]
[1725270279009,9.518211,2490.1,2490.0,0.12827918]
[1725270279206,2.81093,2490.3,2490.0,0.12827918]
[1725270279710,2.81101,2490.3,2490.0,0.12827918]
[1725270279915,2.81095,2490.3,2490.0,0.12827918]
[1725270280110,2.81113,2490.1,2490.0,0.12827918]
[1725270280909,2.81059,2490.6,2490.0,0.12827918]
[1725270281109,2.81039,2490.8,2490.0,0.12827918]
[1725270281310,2.81024,2490.9,2490.2,2.81101]
[1725270281555,2.81016,2491.0,2490.3,0.08030262]
[1725270281711,3.372166,2491.0,2490.3,0.08030262]
[1725270281910,0.562006,2491.0,2490.1,0.08029883]
[1725270282121,2.415,2491.3,2490.1,0.08029883]
[1725270282422,2.415,2491.3,2490.2,2.81096]
[1725270282607,2.415,2491.3,2490.3,0.08029886]
[1725270282810,2.415,2491.3,2490.1,0.08029892]
[1725270283023,2.81057,2490.6,2490.0,0.12827918]
[1725270283248,2.81057,2490.6,2490.0,2.93950918]
[1725270283448,5.62226,2490.1,2490.0,0.12827918]
[1725270283648,2.81113,2490.1,2490.0,0.12827918]
[1725270283851,2.81093,2490.3,2490.0,0.12827918]
[1725270284035,2.81071,2490.5,2490.0,0.12827918]
[1725270284251,2.4946,2490.6,2490.0,0.12827918]
[1725270284418,2.81078,2490.5,2490.0,0.12827918]
[1725270284617,2.81079,2490.4,2490.0,0.12827918]
[1725270284819,2.81078,2490.5,2490.0,0.12827918]
[1725270285267,2.81086,2490.4,2490.0,0.12827918]
[1725270285462,2.81078,2490.5,2490.0,0.12827918]
[1725270285768,2.81099,2490.3,2490.0,0.12827918]
[1725270285974,3.366264,2490.5,2490.0,0.12827918]
[1725270286179,2.81083,2490.4,2490.0,0.12827918]
[1725270286848,2.81092,2490.3,2490.0,0.12827918]
[1725270287457,2.81113,2490.1,2490.0,0.12827918]
[1725270288037,2.81112,2490.2,2490.0,0.12827918]
[1725270288376,10.81739,2490.1,2490.0,0.12827918]
[1725270288543,8.00626,2490.1,2490.0,0.12827918]
[1725270289432,10.81739,2490.1,2490.0,0.12827918]
[1725270290469,2.81232,2489.1,2488.3,2.81308]
[1725270290636,2.3599,2490.0,2488.5,2.81293]
[1725270290637,2.81214,2489.2,2488.5,2.81293]
[1725270291177,5.3599,2490.0,2488.6,2.45165095]
[1725270291178,2.81182,2489.5,2488.6,2.45165095]
[1725270291474,2.81163,2489.7,2488.9,2.81247]
[1725270291689,2.81163,2489.7,2489.0,0.08033972]
[1725270291863,2.81179,2489.6,2489.0,0.08033972]
[1725270292066,2.81181,2489.5,2489.0,0.08033972]
[1725270292231,5.62331,2489.7,2489.0,0.08033972]
[1725270292437,2.81182,2489.5,2489.0,0.08033972]
[1725270292884,2.81226,2489.1,2488.5,3.0]
[1725270293098,2.81222,2489.2,2488.4,2.81297]
[1725270293299,2.3458,2489.4,2488.5,3.08034811]
[1725270293598,2.3458,2489.4,2488.6,3.40214181]
[1725270293599,2.81211,2489.3,2488.6,3.40214181]
[1725270293806,2.3458,2489.4,2488.7,0.08034821]
[1725270294102,2.81193,2489.4,2488.7,0.08034821]
[1725270294272,2.81193,2489.4,2488.7,2.89304821]
[1725270294973,2.81203,2489.3,2488.7,2.89303821]
[1725270295275,2.3476,2489.8,2488.8,2.81255]
[1725270295276,2.81159,2489.7,2488.8,2.81255]
[1725270295600,2.81183,2489.5,2488.9,0.08034173]
[1725270296998,2.81183,2489.5,2488.6,5.62556]
[1725270296999,2.81211,2489.3,2488.7,5.81271]
[1725270297164,2.81211,2489.3,2488.8,0.08034827]
[1725270297556,5.22695,2489.2,2488.4,2.81298]
[1725270297792,8.0392,2489.2,2488.5,2.81287]
[1725270298000,2.81233,2489.1,2488.4,2.81298]
[1725270299300,2.81239,2489.0,2488.4,2.81298]
[1725270300287,2.81239,2489.0,2488.4,2.81297]
[1725270300697,5.22695,2489.2,2488.4,3.375589]
[1725270300698,8.03919,2489.2,2488.4,3.375589]
[1725270300900,2.81226,2489.1,2488.4,2.81297]
[1725270301204,2.81229,2489.1,2488.5,2.81291]
[1725270301506,2.81215,2489.2,2488.5,2.81291]
[1725270301925,5.62438,2489.2,2488.5,2.81291]
[1725270302075,2.81215,2489.2,2488.6,2.81282]
[1725270302279,2.81193,2489.4,2488.8,2.81253]
[1725270302578,5.27102,2489.6,2489.0,2.81235]
[1725270302785,2.81147,2489.8,2489.1,2.81226]
[1725270302981,2.81158,2489.7,2489.0,2.89264282]
[1725270303181,2.81158,2489.7,2488.9,2.81245]
[1725270303182,5.62349,2489.6,2488.9,2.81245]
[1725270303481,0.96946115,2489.7,2488.6,2.81277]
[1725270303482,2.81193,2489.4,2488.6,2.81277]
[1725270303728,2.81193,2489.4,2488.7,2.81261]
[1725270303883,5.62395,2489.4,2488.8,2.81258]
[1725270304308,0.96946115,2489.7,2487.7,2.81374]
[1725270304309,2.81314,2488.4,2487.7,2.81374]
[1725270304523,2.81373,2487.8,2487.2,2.81431]
[1725270304725,2.81373,2487.8,2487.0,3.21968]
[1725270304726,0.281314,2488.3,2487.3,2.81419]
[1725270304885,2.81289,2488.6,2487.9,2.81354]
[1725270305091,2.81289,2488.6,2487.8,2.81364]
[1725270305309,2.81315,2488.4,2487.8,2.81364]
[1725270305578,2.81315,2488.4,2487.7,0.08037596]
[1725270305579,2.8131,2488.4,2487.7,0.08037596]
[1725270305884,2.81285,2488.6,2487.7,0.08038266]
[1725270306121,2.81285,2488.6,2488.0,2.81343]
[1725270306306,0.62583362,2488.6,2487.5,2.81404]
[1725270306506,2.81359,2488.0,2487.3,2.81428]
[1725270306719,2.81359,2488.0,2487.2,2.81433]
[1725270306720,2.8138,2487.8,2487.2,2.81433]
[1725270307110,2.81353,2488.0,2487.3,2.81428]
[1725270307293,2.81353,2488.0,2487.2,2.81433]
[1725270307528,2.81368,2487.9,2487.2,2.81432]
[1725270307727,3.343743,2488.0,2487.0,2.7602]
[1725270307728,3.343753,2488.0,2487.0,2.7602]
[1725270307933,2.81384,2487.7,2487.1,2.81445]
[1725270308334,2.2529,2488.5,2487.2,0.08040294]
[1725270308536,2.81312,2488.4,2487.8,2.81371]
[1725270308735,2.81312,2488.4,2487.2,0.53170632]
[1725270308736,2.8135,2488.0,2487.2,0.53170632]
[1725270308952,2.8135,2488.0,2486.9,2.81465]
[1725270308953,2.81386,2487.7,2486.9,2.81465]
[1725270309151,2.81386,2487.7,2487.1,2.81449]
[1725270309678,2.81397,2487.6,2486.9,2.81465]
[1725270309971,2.81409,2487.5,2486.8,2.81486]
[1725270310178,6.162621,2487.7,2487.0,2.81455]
[1725270310470,2.81398,2487.6,2487.0,2.89495817]
[1725270310624,2.2529,2487.9,2487.0,0.65137499]
[1725270310827,5.28101,2488.3,2487.5,2.81398]
[1725270311039,2.81349,2488.1,2487.5,2.81398]
[1725270311240,2.81359,2488.0,2487.3,2.81421]
[1725270311460,2.81392,2487.7,2487.1,2.81445]
[1725270311664,4.07156146,2488.4,2486.9,8.09461]
[1725270311665,0.22529,2488.5,2488.0,2.81349]
[1725270311864,2.4727,2488.7,2488.0,2.81342]
[1725270311865,2.81283,2488.6,2488.0,2.81342]
[1725270312069,0.528553,2488.5,2488.0,2.81342]
[1725270312282,2.81317,2488.3,2487.9,0.08037898]
[1725270312430,2.81308,2488.4,2487.6,2.81387]
[1725270312637,2.81308,2488.4,2487.7,2.81376]
[1725270312869,2.81328,2488.2,2487.4,2.81409]
[1725270313033,2.81328,2488.2,2487.6,2.81395]
[1725270314135,2.8131,2488.4,2487.7,2.81375]
[1725270314433,2.8131,2488.4,2487.7,0.08038711]
[1725270314635,0.65442615,2488.6,2487.9,2.81353]
[1725270314871,2.81294,2488.5,2487.7,2.89410706]
[1725270315175,2.81337,2488.2,2487.5,2.81399]
[1725270315473,2.81337,2488.2,2487.6,3.0]
[1725270315833,2.81337,2488.2,2487.5,2.81399]
[1725270316158,4.07156146,2488.0,2487.0,2.81455]
[1725270316557,6.42766146,2487.6,2486.2,2.2959]
[1725270316793,2.81407,2487.5,2486.9,2.81467]
[1725270316943,2.3561,2487.6,2487.0,0.08041012]
[1725270317151,2.3561,2487.6,2487.1,2.81451]
[1725270317975,5.17012,2487.6,2486.9,2.81474]
[1725270318155,5.687115,2487.6,2486.9,2.81467]
[1725270318361,5.687115,2487.6,2486.1,2.81562]
[1725270318362,2.81365,2487.9,2486.5,2.81514]
[1725270318571,0.35383492,2488.0,2487.4,2.81417]
[1725270318747,2.81416,2487.5,2486.7,2.8149]
[1725270318946,2.81442,2487.2,2486.5,5.63026]
[1725270319150,2.81424,2487.4,2486.6,3.0]
[1725270319351,2.81433,2487.3,2486.7,2.8149]
[1725270319557,2.81424,2487.4,2486.7,2.8149]
[1725270319558,2.81441,2487.2,2486.7,2.8149]
[1725270319858,2.81441,2487.2,2486.5,2.8151]
[1725270319859,2.81457,2487.1,2486.5,2.8151]
[1725270320062,5.18967,2487.1,2486.5,2.8151]
[1725270320376,5.18967,2487.1,2485.9,0.77949348]
[1725270320377,2.81477,2486.9,2486.1,2.81559]
[1725270320592,2.81505,2486.7,2486.1,2.81559]
[1725270320872,2.81505,2486.7,2485.9,3.59532348]
[1725270320873,2.81477,2486.9,2486.2,2.81546]
[1725270321077,2.81477,2486.9,2486.2,5.63092]
[1725270321437,0.8804858,2486.9,2486.0,2.81573]
[1725270321631,2.81481,2486.9,2486.2,2.81549]
[1725270322087,2.81481,2486.9,2486.4,2.8153]
[1725270322301,0.281424,2487.4,2486.8,2.81482]
[1725270322545,0.281424,2487.4,2486.5,0.08042501]
[1725270322546,2.81431,2487.3,2486.6,2.81498]
[1725270322748,2.81366,2487.9,2486.7,2.89536737]
[1725270322749,2.81393,2487.7,2486.7,2.89536737]
[1725270322973,0.281393,2487.6,2486.7,2.89536737]
[1725270323653,2.8144,2487.3,2486.7,2.81495]
[1725270323975,2.81412,2487.5,2486.8,0.08041322]
[1725270324194,2.81425,2487.4,2486.8,0.08041322]
[1725270324391,2.81412,2487.5,2486.8,0.08041322]
[1725270324595,2.81439,2487.3,2486.8,0.08041322]
[1725270324888,2.2556,2487.9,2487.1,2.81445]
[1725270325206,2.2556,2487.9,2486.4,3.4051]
[1725270325207,2.81402,2487.6,2486.9,2.8147]
[1725270325347,2.81402,2487.6,2487.0,2.81461]
[1725270325547,2.81393,2487.7,2487.1,2.81451]
[1725270325748,7.07156146,2488.4,2487.1,2.81451]
[1725270325749,8.05657,2488.3,2487.6,2.81387]
[1725270325944,2.81254,2488.9,2488.3,2.81309]
[1725270326361,2.8123,2489.1,2488.3,2.81309]
[1725270326362,2.8123,2489.1,2488.5,2.81293]
[1725270326563,6.14889,2489.1,2488.5,2.81293]
[1725270326775,2.81244,2489.0,2488.3,2.81312]
[1725270327027,2.81256,2488.9,2488.4,2.81304]